Cogmind - Beta 14 @@@ ROGUE MODE // 2024.09.18 @ 11:52:17 Player: Corvi Result: Destroyed by G-67 Veteran with Plasma Rifle Performance ------------- Evolutions (5) 2500 Regions Visited (13) 2600 Robots Destroyed (109) 545 Value Destroyed (3568) 3568 Prototype IDs (30) 600 Alien Tech Used (0) 0 Bonus (2662) 2662 TOTAL SCORE: 12475 Bonus ------- High Alert Combat Kills 217 Follower Combat Kills 1349 Entered DSFs 500 Network Hubs Disabled 200 Aligned with FarCom 300 Built Enhanced Grunts 300 Friendly Fire -204 Cogmind --------- Core Integrity 0/1000 Matter 32/300 Energy 100/100 System Corruption 2% Temperature Cool (0) Movement Core (50) Location -5/Factory Parts ------- > --- POWER (2) -------- (None) > --- PROPULSION (5) --- (None) > --- UTILITY (7) ------ (None) > --- WEAPON (3) ------- (None) > --- INVENTORY (5) ---- Light Angular Momentum Engine Micro Fission Core Centrium Medium Armor Plating AWS/Thermal Peak State ------------ > --- POWER ------------ Light Angular Momentum Engine Light Angular Momentum Engine > --- PROPULSION ------- Improved Hover Unit Gravmag System Gravmag System Gravmag System Antigrav System > --- UTILITY ---------- Small Storage Unit Core Analyzer Phase Shifter Improved Hacking Suite Improved Hacking Suite Improved System Shield Advanced System Shield > --- WEAPON ----------- KE Penetrator Enhanced Gauss Cannon Axe > --- INVENTORY -------- Light Angular Momentum Engine ECM Suite Centrium Medium Armor Plating AWS/Thermal Improved Grenade Launcher Advanced Datajack [Rating: 80] Favorites ----------- Power Ion Engine Engine Ion Engine Power Core Light Nuclear Core Propulsion Light Treads Treads Light Treads Leg Improved Carbon-fiber Leg Wheel Compact Wheel Hover Unit Hover Unit Flight Unit Flight Unit Utility Hacking Suite Device Transmission Jammer Storage Medium Storage Unit Processor Core Analyzer Hackware Hacking Suite Protection Light Armor Plating Weapon Autogun Energy Gun High-powered Shock Rifle Ballistic Gun Autogun Ballistic Cannon Light Cannon Launcher Rocket Launcher Impact Weapon Makeshift Hammer Slashing Weapon Greatsword Special Melee Weapon Advanced Datajack Build | -11 -10 -10 -10 -9 -8 -7 -7 -6 -6 -6 -6 -6 -5 ------- Run | Yrd Mat Min Exi Min Mat Fac DSF Fac Ext Cet Arc Hub Fac Slots Evolved 10 | . . . . . 4 2 . 2 . . . . 2 Power 1 | . . . . . . . . 1 . . . . . Propulsion 3 | . . . . . 2 . . . . . . . 1 Utility 5 | . . . . . 2 2 . 1 . . . . . Weapon 1 | . . . . . . . . . . . . . 1 Parts Attached 142 | 7 11 . . 4 30 2 . 21 18 7 20 6 16 Power 18 | 1 2 . . 1 2 1 . 2 2 . 3 2 2 Engine 12 | 1 2 . . 1 . 1 . 2 1 . 2 2 . Core 6 | . . . . . 2 . . . 1 . 1 . 2 Reactor . | . . . . . . . . . . . . . . Propulsion 38 | 2 1 . . 2 13 . . 5 4 . 6 2 3 Treads 12 | 2 1 . . 2 4 . . 1 . . 2 . . Leg 4 | . . . . . . . . . 4 . . . . Wheel 4 | . . . . . . . . 4 . . . . . Hover 13 | . . . . . 4 . . . . . 4 2 3 Flight 5 | . . . . . 5 . . . . . . . . Utility 40 | 1 3 . . 1 5 1 . 11 3 2 7 2 4 Device 15 | . . . . 1 3 1 . 3 . . 2 2 3 Storage 6 | 1 1 . . . 1 . . 2 . . 1 . . Processor 5 | . . . . . . . . 4 . . . . 1 Hackware 9 | . . . . . 1 . . 1 2 1 4 . . Protection 5 | . 2 . . . . . . 1 1 1 . . . Artifact . | . . . . . . . . . . . . . . Weapon 46 | 3 5 . . . 10 . . 3 9 5 4 . 7 Energy Gun 6 | . . . . . . . . 1 3 2 . . . Energy Cannon . | . . . . . . . . . . . . . . Ballistic Gun 18 | 3 4 . . . 7 . . 1 . . 3 . . Ballistic Cannon 2 | . 1 . . . . . . . . . . . 1 Launcher 12 | . . . . . . . . . 5 3 . . 4 Special Weapon . | . . . . . . . . . . . . . . Impact Weapon 3 | . . . . . 3 . . . . . . . . Slashing Weapon 4 | . . . . . . . . 1 1 . . . 2 Piercing Weapon . | . . . . . . . . . . . . . . Special Melee Weapon 1 | . . . . . . . . . . . 1 . . Unidentified Prototypes 3 | . . . . . 2 . . . . 1 . . . Parts Lost 43 | . . . . 1 6 . 1 11 4 8 1 2 9 Power 6 | . . . . . . . . 2 1 2 . . 1 Propulsion 19 | . . . . . 5 . . 4 2 2 1 2 3 Utility 13 | . . . . 1 1 . 1 4 . 1 . . 5 Weapon 5 | . . . . . . . . 1 1 3 . . . Highest Loss Streak 8 | . . . . 1 2 . 1 5 3 8 1 2 5 To Critical Strikes . | . . . . . . . . . . . . . . Average Slot Usage (%) 88 | . 98 100 100 98 87 80 80 86 83 68 82 98 76 Engine 7 | . 14 14 14 14 . 3 7 11 4 . 3 13 4 Core 2 | . . . . . 8 4 . . 1 . 3 . 4 Treads 14 | . 28 28 28 28 11 30 30 18 . . 7 . . Leg 1 | . . . . . . . . . 12 7 . . . Wheel 1 | . . . . . . . . 5 8 . . . . Hover 4 | . . . . . 13 . . . . . 6 24 18 Device 6 | . . . . 9 14 11 11 14 6 . 1 6 4 Storage 9 | . 14 14 14 14 9 7 7 9 6 6 6 6 4 Processor 5 | . . . . . . . . 4 20 20 15 6 4 Hackware 7 | . . . . . 8 7 7 7 7 13 17 26 16 Protection 5 | . 13 14 14 3 . . . 1 4 5 4 . . Ballistic Gun 14 | . 27 28 28 28 13 15 15 7 . . 10 13 2 Launcher 1 | . . . . . . . . . 3 6 . . 6 Peak Build Rating 80 | 6 11 11 12 13 38 43 43 58 54 50 74 73 80 Average Rating 33 | 4 9 11 11 11 28 40 41 47 43 43 58 71 61 On Entrance 32 | . 6 11 11 12 13 38 43 39 42 50 44 73 71 Naked Turns 4 | . . . . . . . . . . . . . 4 Heaviest Build 50 | 11 34 34 34 34 22 28 28 41 35 35 50 34 44 Greatest Support 112 | 40 40 40 40 40 112 112 112 112 58 54 46 36 45 Greatest Overweight (x) 9 | 2 . . . . 7 . . 4 1 1 9 1 4 Average Overweight (x) . | . . . . . . . . . . . 1 . . Largest Inventory Capacity 15 | 8 15 15 15 15 15 8 8 10 10 10 10 8 8 Average Capacity 10 | 7 12 15 15 15 8 8 8 9 10 10 9 8 7 Most Carried 15 | 2 15 15 15 15 15 8 8 9 8 7 10 8 8 Average Carried 8 | 1 10 15 14 15 8 8 7 7 6 4 6 7 7 Final Capacity 15 | 8 15 15 15 15 8 8 8 10 10 10 8 8 5 Final Carried 15 | 2 15 15 15 15 8 8 8 7 7 4 8 8 5 Class Distribution -------------------- 53% | Mutant 37% | Scavenger-Mutant 4% | Skirmisher Dominant Class ---------------- Mutant | -10/Materials Mutant | -10/Mines Mutant | -10/Exiles Mutant | -9/Mines Mutant | -8/Materials Mutant | -7/Factory Mutant | -7/DSF Skirmisher | -6/Factory Scavenger-Mutant | -6/Extension Scavenger-Mutant | -6/Cetus Scavenger-Mutant | -6/Archives Scavenger-Mutant | -6/Hub_04(d) Scavenger-Mutant | -5/Factory Resources | -11 -10 -10 -10 -9 -8 -7 -7 -6 -6 -6 -6 -6 -5 ----------- Run | Yrd Mat Min Exi Min Mat Fac DSF Fac Ext Cet Arc Hub Fac Matter Collected 3143 | 217 411 . . 277 587 . . 284 516 38 443 259 111 Remotely . | . . . . . . . . . . . . . . Salvage Created 4075 | . 463 . . 347 680 . . 883 890 . 127 170 515 Parts 206 | . 43 . . 23 29 . . 39 34 . 16 6 16 Haulers Intercepted 9 | . 2 . . . 2 . . . 5 . . . . Recyclers Shooed 2 | . . . . . . . . . 1 . . 1 . Parts Field Recycled . | . . . . . . . . . . . . . . Retrieved Matter . | . . . . . . . . . . . . . . Parts Self-Destructed . | . . . . . . . . . . . . . . Prevented . | . . . . . . . . . . . . . . Kills | -11 -10 -10 -10 -9 -8 -7 -7 -6 -6 -6 -6 -6 -5 ------- Run | Yrd Mat Min Exi Min Mat Fac DSF Fac Ext Cet Arc Hub Fac Combat Hostiles Destroyed 66 | . 12 . . 9 16 . . 9 8 3 . . 9 Melee 8 | . . . . . 2 . . 5 1 . . . . Guns 40 | . 10 . . 9 13 . . 4 2 1 . . 1 Cannons 2 | . 2 . . . . . . . . . . . . AOE 15 | . . . . . . . . . 5 2 . . 8 Classes Destroyed 13 | . 5 . . 1 4 . . 2 1 . . . . Worker 11 | . . . . . 1 . . 2 5 . . 2 1 Builder 3 | . . . . . . . . . 1 . . . 2 Tunneler 4 | . . . . 1 . . . . 1 . . 1 1 Hauler 9 | . 2 . . . 2 . . . 5 . . . . Recycler 7 | . . . . . 1 . . 2 1 . . 1 2 Operator 6 | . 1 . . . . . . . 1 . 4 . . Watcher 3 | . 3 . . . . . . . . . . . . Swarmer 17 | . 6 . . 2 6 . . . 3 . . . . Grunt 25 | . 6 . . 7 5 . . 2 1 . . . 4 Sentry 11 | . . . . . 3 . . 4 3 . . . 1 Specialist 2 | . . . . . . . . 2 . . . . . Hunter 5 | . . . . . 2 . . . 1 . . . 2 Programmer 3 | . . . . . . . . 1 . . . . 2 Cetus Guard 3 | . . . . . . . . . . 3 . . . Best Kill Streak 9 | . 3 . . 5 6 . . 4 9 3 1 2 6 Combat Bots Only 4 | . 3 . . 4 3 . . 2 3 3 . . 4 Max Kills in Single Turn 6 | . 1 . . 2 1 . . 1 3 1 1 2 6 Gunslinging 1 | . . . . 1 . . . . . . . . . Exploded 4 | . . . . . . . . . 1 1 . . 4 Melee 1 | . . . . . 1 . . 1 1 . . . . Uniques/NPCs Destroyed . | . . . . . . . . . . . . . . Combat | -11 -10 -10 -10 -9 -8 -7 -7 -6 -6 -6 -6 -6 -5 -------- Run | Yrd Mat Min Exi Min Mat Fac DSF Fac Ext Cet Arc Hub Fac Hostile Shots Fired 656 | . 38 . . 44 83 . 31 226 72 52 . 5 105 Missed 215 | . 14 . . 11 20 . 20 74 24 18 . 1 33 Damage Taken 6730 | . 304 . . 445 832 . 142 1647 441 967 20 219 1713 Core 1735 | . 39 . . 55 182 . 12 167 126 86 . 64 1004 Absorbed by Shields 96 | . . . . . . . . . 86 10 . . . Regen/Repaired (Parts) 71 | . 71 . . . . . . . . . . . . Core Remaining (%) 74 | 100 . . . 62 66 . 98 . . . . 47 . Volleys Fired 214 | . 46 . . 23 39 . . 21 30 16 16 10 13 Largest 2 | . 2 . . 2 2 . . 2 2 2 2 2 2 Hottest 115 | . 55 . . 46 56 . . 105 115 115 66 66 86 Shots Fired 404 | . 92 . . 46 60 . . 41 57 31 33 20 24 Gun 331 | . 87 . . 46 60 . . 41 26 10 33 20 8 Cannon 5 | . 5 . . . . . . . . . . . . Launcher 68 | . . . . . . . . . 31 21 . . 16 Special . | . . . . . . . . . . . . . . Kinetic 283 | . 92 . . 46 60 . . 24 . . 33 20 8 Thermal 21 | . . . . . . . . 17 4 . . . . Explosive 68 | . . . . . . . . . 31 21 . . 16 Electromagnetic 32 | . . . . . . . . . 22 10 . . . Robot Hit Streak 15 | . 9 . . 10 15 . . 13 15 6 5 11 15 Robot Miss Streak 9 | . 3 . . 3 7 . . 9 2 3 2 2 2 Penetration Max 1 | . . . . . . . . 1 . . 1 1 . Secondary Targets 4 | . 2 . . 1 . . . 1 . . . . . Max Gunslinging Chain 1 | . 1 . . 1 . . . 1 . . . . . Autonomous 4 | . . . . . . . . . 4 . . . . Shots Hit Robots 301 | . 62 . . 30 61 . . 48 36 18 17 12 17 Core Hits 250 | . 28 . . 14 57 . . 19 54 28 13 5 32 Critical Kills 1 | . . . . . . . . . . . 1 . . Critical Parts Destroyed 4 | . . . . . 2 . . . . . . 2 . Critical Strikes 8 | . . . . . 2 . . 3 . . 1 2 . Burn 2 | . . . . . . . . 2 . . . . . Destroy 3 | . . . . . . . . . . . 1 2 . Smash 2 | . . . . . 2 . . . . . . . . Sever 1 | . . . . . . . . 1 . . . . . Melee Attacks 70 | . . . . . 31 . . 18 14 . 1 . 6 Impact 31 | . . . . . 31 . . . . . . . . Slashing 38 | . . . . . . . . 18 14 . . . 6 Piercing . | . . . . . . . . . . . . . . Sneak Attacks 11 | . . . . . 3 . . 5 2 . 1 . . Combat Hostiles 1 | . . . . . 1 . . . . . . . . Follow-up Attacks . | . . . . . . . . . . . . . . Damage Inflicted 11978 | 2 936 . . 484 1667 . . 1869 2615 1186 553 580 2086 Guns 4568 | . 855 . . 484 875 . . 781 360 109 553 378 173 Cannons 81 | . 81 . . . . . . . . . . . . Explosions 4877 | . . . . . . . . . 1791 1077 . 192 1817 Melee 2440 | . . . . . 792 . . 1088 464 . . . 96 Ramming 12 | 2 . . . . . . . . . . . 10 . Kinetic 3875 | . 936 . . 484 875 . . 476 . . 553 378 173 Thermal 1216 | . . . . . . . . 305 59 . . . 852 Explosive 3833 | . . . . . . . . . 1791 1077 . . 965 Electromagnetic 602 | . . . . . . . . . 301 109 . 192 . Impact 792 | . . . . . 792 . . . . . . . . Slashing 1648 | . . . . . . . . 1088 464 . . . 96 Piercing . | . . . . . . . . . . . . . . Highest Corruption 5 | . . . . . . . . . 5 5 5 1 2 Average Corruption 4 | . . . . . . . . . 5 5 4 1 1 Corruption Purged 5 | . . . . . . . . . . . 5 . . Corruption Blocked . | . . . . . . . . . . . . . . Effects 30 | . . . . . . . . . 4 12 13 . 1 Message Errors 6 | . . . . . . . . . 1 3 2 . . Matter Fused 2 | . . . . . . . . . . 2 . . . Heat Flow Errors 6 | . . . . . . . . . . 2 4 . . Energy Discharges 2 | . . . . . . . . . . . 2 . . Parts Rejected 1 | . . . . . . . . . 1 . . . . Data Loss (minor) 6 | . . . . . . . . . 1 2 2 . 1 Data Loss (major) 5 | . . . . . . . . . 1 2 2 . . Misfires 2 | . . . . . . . . . . 1 1 . . Overload Shots . | . . . . . . . . . . . . . . Overflow Damage 682 | . . . . . 255 . . 263 40 12 . 47 65 Projectiles . | . . . . . . . . . . . . . . Explosions 164 | . . . . . . . . . 40 12 . 47 65 Melee 518 | . . . . . 255 . . 263 . . . . . Knockbacks 10 | . 1 . . . 9 . . . . . . . . Impact 8 | . . . . . 8 . . . . . . . . Kinetic 1 | . 1 . . . . . . . . . . . . Secondary 1 | . . . . . 1 . . . . . . . . Self-Inflicted Damage 162 | . . . . . . . . . . . . 103 59 Shots 2 | . . . . . . . . . . . . 1 1 Rammed 5 | 1 . . . . . . . . . . . 1 3 Targets Rammed 5 | 1 . . . . . . . . . . . 1 3 Kicked . | . . . . . . . . . . . . . . Crushed . | . . . . . . . . . . . . . . Highest Temperature 441 | . 51 . . 76 36 . . 441 238 164 248 40 127 Average Temperature 63 | . 15 . . 21 10 . . 178 84 48 52 14 44 Received Heat Transfer 1807 | . 129 . . 261 234 . 36 564 117 157 . . 309 Effects 8 | . . . . . . . . 8 . . . . . Shutdowns 3 | . . . . . . . . 3 . . . . . Energy Bleed 1 | . . . . . . . . 1 . . . . . Interference 4 | . . . . . . . . 4 . . . . . Siege Activations . | . . . . . . . . . . . . . . Robots Corrupted 4 | . . . . . 4 . . . . . . . . Combat Hostiles 1 | . . . . . 1 . . . . . . . . Parts Fried 7 | . . . . . . . . . 4 . . 3 . Impact Corruptions 8 | . . . . . 8 . . . . . . . . Robots Melted . | . . . . . . . . . . . . . . Combat Hostiles . | . . . . . . . . . . . . . . Parts Melted 2 | . . . . . . . . 1 . . . . 1 Heat Transferred 1674 | . . . . . . . . 900 74 . . . 700 Parts Sabotaged 4 | . . . . . . . . . . . . . 4 Parts Stolen . | . . . . . . . . . . . . . . Parts Stripped . | . . . . . . . . . . . . . . Power Chain Reactions . | . . . . . . . . . . . . . . Alert | -11 -10 -10 -10 -9 -8 -7 -7 -6 -6 -6 -6 -6 -5 ------- Run | Yrd Mat Min Exi Min Mat Fac DSF Fac Ext Cet Arc Hub Fac Peak Influence 1152 | . 183 70 . 245 344 156 114 153 351 168 222 986 1152 Initial 483 | . . 70 . . 17 156 109 59 74 126 6 14 483 Average 162 | . 72 70 . 121 218 156 106 58 138 108 103 290 825 Maximum Alert Level 4 | . . . . 1 1 . . . 1 . 1 3 4 Low Security (%) 73 | 100 100 100 . 66 33 100 100 100 70 100 87 60 . Level 1 21 | . . . . 33 66 . . . 29 . 12 13 11 Level 2 1 | . . . . . . . . . . . . 13 27 Level 3 2 | . . . . . . . . . . . . 13 32 Level 4 1 | . . . . . . . . . . . . . 28 Level 5 . | . . . . . . . . . . . . . . High Security . | . . . . . . . . . . . . . . Max Security . | . . . . . . . . . . . . . . Squads Dispatched 30 | . 2 . . . 5 . . 9 3 . . 4 7 Investigation 7 | . . . . . 4 . . 1 1 . . . 1 Extermination 2 | . . . . . . . . 2 . . . . . Reinforcement 13 | . 2 . . . 1 . . 3 2 . . 4 1 Assault 4 | . . . . . . . . . . . . . 4 Garrison 4 | . . . . . . . . 3 . . . . 1 Intercept . | . . . . . . . . . . . . . . Searches Triggered . | . . . . . . . . . . . . . . Construction Impeded 1 | . . . . . . . . . 1 . . . . Haulers Reinforced 2 | . . . . . . . . . . . . 2 . Active Scanning Responses . | . . . . . . . . . . . . . . Cargo Convoy Interrupts 1 | . . . . . . . . 1 . . . . . Stealth | -11 -10 -10 -10 -9 -8 -7 -7 -6 -6 -6 -6 -6 -5 --------- Run | Yrd Mat Min Exi Min Mat Fac DSF Fac Ext Cet Arc Hub Fac Distress Signals 12 | . 1 . . . 5 . . 2 . 1 . 2 1 Communications Jammed 2 | . . . . . . . . 2 . . . . . Distress Signals 1 | . . . . . . . . 1 . . . . . Times Spotted 162 | . 22 . . 11 35 . 1 15 18 5 16 13 26 Peak Tracking Total 10 | . 3 . . 5 6 . 2 4 3 5 . 4 10 Tactical Retreats 15 | . 1 . . 3 8 . 1 1 . . . 1 . Traps | -11 -10 -10 -10 -9 -8 -7 -7 -6 -6 -6 -6 -6 -5 ------- Run | Yrd Mat Min Exi Min Mat Fac DSF Fac Ext Cet Arc Hub Fac Traps Triggered 6 | . . . . . 1 . . 1 1 . . . 3 Indirectly . | . . . . . . . . . . . . . . Trap Hack Attempts . | . . . . . . . . . . . . . . Triggered . | . . . . . . . . . . . . . . Disarmed . | . . . . . . . . . . . . . . Reprogrammed . | . . . . . . . . . . . . . . Reused . | . . . . . . . . . . . . . . Traps Extracted . | . . . . . . . . . . . . . . Installed . | . . . . . . . . . . . . . . Triggered 4 | . . . . . 2 . . 2 . . . . . Machines | -11 -10 -10 -10 -9 -8 -7 -7 -6 -6 -6 -6 -6 -5 ---------- Run | Yrd Mat Min Exi Min Mat Fac DSF Fac Ext Cet Arc Hub Fac Machines Disabled 21 | . . . . . . . . . 4 2 3 5 7 Max in Single Turn 5 | . . . . . . . . . 2 1 1 5 4 Garrison Access 1 | . . . . . . . . . . . . . 1 Network Hub 1 | . . . . . . . . . . . . 1 . Machines Repaired . | . . . . . . . . . . . . . . Machines Dismantled . | . . . . . . . . . . . . . . Machines Sabotaged . | . . . . . . . . . . . . . . Overloaded Fab Kills . | . . . . . . . . . . . . . . Hacking | -11 -10 -10 -10 -9 -8 -7 -7 -6 -6 -6 -6 -6 -5 --------- Run | Yrd Mat Min Exi Min Mat Fac DSF Fac Ext Cet Arc Hub Fac Machines Accessed 25 | . 5 . 1 . 2 1 . 6 4 2 . 2 2 Terminals 21 | . 4 . . . 2 1 . 4 4 2 . 2 2 Fabricators . | . . . . . . . . . . . . . . Repair Stations 1 | . 1 . . . . . . . . . . . . Recycling Units 1 | . . . . . . . . 1 . . . . . Scanalyzers . | . . . . . . . . . . . . . . Garrison Access 1 | . . . . . . . . 1 . . . . . Total Hacks 82 | . 15 . 1 . 8 2 . 13 12 4 . 13 14 Successful 39 | . 10 . 1 . 4 1 . 5 3 3 . 6 6 Failed 42 | . 5 . . . 3 1 . 8 9 1 . 7 8 Catastrophic 11 | . 1 . . . 1 . . 3 3 . . 1 2 Database Lockouts 1 | . . . . . 1 . . . . . . . . Manual 62 | . 9 . 1 . 10 . . 8 5 1 . 14 14 Terminals 74 | . 12 . . . 8 2 . 9 12 4 . 13 14 Fabricators . | . . . . . . . . . . . . . . Repair Stations 3 | . 3 . . . . . . . . . . . . Recycling Units 1 | . . . . . . . . 1 . . . . . Scanalyzers . | . . . . . . . . . . . . . . Garrison Access 3 | . . . . . . . . 3 . . . . . Terminal Hacks 27 | . 5 . 1 . 2 1 . 2 3 3 . 5 5 Record 2 | . . . . . . . . . . 2 . . . Robot Analysis 6 | . 3 . . . 1 . . . . . . 1 1 Open Door 3 | . . . . . . . . 1 1 1 . . . Open DSF 1 | . . . . . . 1 . . . . . . . Terminal Index 1 | . . . . . 1 . . . . . . . . Alert Level 6 | . 1 . . . . . . 1 1 . . 1 2 Unreport Threat 3 | . . . . . . . . . 1 . . . 2 Maintenance Status 1 | . 1 . . . . . . . . . . . . Recall Reinforcements 2 | . . . . . . . . . . . . 2 . Registered Components 1 | . . . . . . . . . . . . 1 . Derelict Proto ID Bank 1 | . . . 1 . . . . . . . . . . Fabricator Hacks . | . . . . . . . . . . . . . . Repair Station Hacks 2 | . 2 . . . . . . . . . . . . Scan Component 1 | . 1 . . . . . . . . . . . . Repair 1 | . 1 . . . . . . . . . . . . Recycling Unit Hacks 1 | . . . . . . . . 1 . . . . . Report Inventory 1 | . . . . . . . . 1 . . . . . Scanalyzer . | . . . . . . . . . . . . . . Garrison Access Hacks . | . . . . . . . . . . . . . . Unauthorized Hacks 9 | . 3 . . . 2 . . 2 . . . 1 1 Terminals 9 | . 3 . . . 2 . . 2 . . . 1 1 Assimilate 1 | . . . . . . . . 1 . . . . . Botnet 8 | . 3 . . . 2 . . 1 . . . 1 1 Fabricators . | . . . . . . . . . . . . . . Repair Stations . | . . . . . . . . . . . . . . Recycling Units . | . . . . . . . . . . . . . . Scanalyzers . | . . . . . . . . . . . . . . Garrison Access . | . . . . . . . . . . . . . . Data Cores Recovered . | . . . . . . . . . . . . . . Used . | . . . . . . . . . . . . . . Hacking Detections 18 | . 4 . . . 2 . . 3 4 1 . 2 2 Full Trace Events 4 | . . . . . 2 . . 1 1 . . . . Feedback Events . | . . . . . . . . . . . . . . Feedback Blocked . | . . . . . . . . . . . . . . Robot Schematics Acquired . | . . . . . . . . . . . . . . Robots Built . | . . . . . . . . . . . . . . Authchips . | . . . . . . . . . . . . . . Time . | . . . . . . . . . . . . . . Total Robot Build Rating . | . . . . . . . . . . . . . . Part Schematics Acquired . | . . . . . . . . . . . . . . Parts Built . | . . . . . . . . . . . . . . Authchips . | . . . . . . . . . . . . . . Time . | . . . . . . . . . . . . . . Total Part Build Rating . | . . . . . . . . . . . . . . Parts Repaired 1 | . 1 . . . . . . . . . . . . Time 26 | . 26 . . . . . . . . . . . . Parts Recycled . | . . . . . . . . . . . . . . Recycled Matter . | . . . . . . . . . . . . . . Retrieved Matter . | . . . . . . . . . . . . . . Retrieved Components . | . . . . . . . . . . . . . . Parts Scanalyzed . | . . . . . . . . . . . . . . Part Schematics Acquired . | . . . . . . . . . . . . . . Parts Damaged . | . . . . . . . . . . . . . . Bothacking | -11 -10 -10 -10 -9 -8 -7 -7 -6 -6 -6 -6 -6 -5 ------------ Run | Yrd Mat Min Exi Min Mat Fac DSF Fac Ext Cet Arc Hub Fac Used RIF Installer . | . . . . . . . . . . . . . . Robots Hacked 1 | . . . . . . . . . . . 1 . . Non-combat . | . . . . . . . . . . . . . . Combat 1 | . . . . . . . . . . . 1 . . Robot Hacks Applied 1 | . . . . . . . . . . . 1 . . parse_system 1 | . . . . . . . . . . . 1 . . Relay Couplers Released 2 | . . . . . . . . . . . . . 2 Machine Destruction 2 | . . . . . . . . . . . . . 2 Fabnet Peak Effective % . | . . . . . . . . . . . . . . Robots Rewired . | . . . . . . . . . . . . . . Allies Hacked . | . . . . . . . . . . . . . . Hacks Repelled . | . . . . . . . . . . . . . . Allies | -11 -10 -10 -10 -9 -8 -7 -7 -6 -6 -6 -6 -6 -5 -------- Run | Yrd Mat Min Exi Min Mat Fac DSF Fac Ext Cet Arc Hub Fac Total Allies 8 | . . . . 1 . . . 1 1 5 . . . Largest Group 5 | . . . . 1 . . . 1 1 5 5 5 5 Highest-Rated Group 480 | . . . . 31 . . . 26 159 480 480 480 480 Highest-Rated Ally 159 | . . . . 31 . . . 26 159 149 96 96 96 Total Orders 1 | . . . . . . . . 1 . . . . . STAY 1 | . . . . . . . . 1 . . . . . Ally Attacks 139 | . . . . 6 . . . . 50 6 16 34 27 Total Damage 4906 | . . . . 83 . . . . 1299 106 628 1286 1504 Kills 38 | . . . . . . . . . 9 1 4 15 9 Allies Corrupted . | . . . . . . . . . . . . . . Allies Melted . | . . . . . . . . . . . . . . Intel | -11 -10 -10 -10 -9 -8 -7 -7 -6 -6 -6 -6 -6 -5 ------- Run | Yrd Mat Min Exi Min Mat Fac DSF Fac Ext Cet Arc Hub Fac Robot Analysis Total 6 | . 3 . . . 1 . . . . . . 1 1 Derelict Logs Recovered 1 | . . . . 1 . . . . . . . . . Drone Launches . | . . . . . . . . . . . . . . Drone Recoveries . | . . . . . . . . . . . . . . Exploration | -11 -10 -10 -10 -9 -8 -7 -7 -6 -6 -6 -6 -6 -5 ------------- Run | Yrd Mat Min Exi Min Mat Fac DSF Fac Ext Cet Arc Hub Fac Turns Passed 8720 | 101 1483 156 519 648 1567 135 60 1132 1059 524 675 225 436 Spaces Moved 5359 | 58 791 98 324 362 966 83 37 646 828 231 281 259 395 Core 43 | 11 . . . . 3 . . . . . 29 . . Treads 2612 | 47 791 98 324 362 263 83 37 469 . . 138 . . Legs 687 | . . . . . . . . . 439 231 17 . . Wheels 566 | . . . . . . . . 177 389 . . . . Hover 1390 | . . . . . 639 . . . . . 97 259 395 Flight 61 | . . . . . 61 . . . . . . . . Fastest Speed 44 | 50 160 160 160 160 48 160 160 93 95 120 48 48 44 Average Speed 132 | 151 160 160 160 160 120 160 160 144 109 184 174 52 58 Slowest Speed 500 | 160 160 160 160 160 440 160 160 320 190 190 500 116 300 Overloaded Moves . | . . . . . . . . . . . . . . Propulsion Burnouts . | . . . . . . . . . . . . . . Robots Hopped . | . . . . . . . . . . . . . . Cave-ins Triggered . | . . . . . . . . . . . . . . Exploration Rate (%) 44 | 5 92 19 64 74 44 2 40 12 76 85 86 20 10 Regions Visited 13 Branch Regions 7 Pre-discovered Areas 2 | . . . . 2 . . . . . . . . . Known Exits Taken 2 | . . . . . 1 1 . . . . . . . Unknown Exits Taken 10 | 1 1 1 1 1 . . . 1 1 1 1 1 . Scrap Searched 2 | . . . . 2 . . . . . . . . . Spaces Dug 4 | . . . . . 3 . . . . . . . 1 Terrain Destroyed 409 | . . . . . 3 . . 2 81 71 4 144 104 Melee 4 | . . . . . 3 . . . . . . . 1 Projectile 9 | . . . . . . . . 1 2 . 4 2 . AOE 395 | . . . . . . . . . 79 71 . 142 103 Terrain Rammed . | . . . . . . . . . . . . . . Walls Destroyed . | . . . . . . . . . . . . . . Machines Disabled . | . . . . . . . . . . . . . . Actions | -11 -10 -10 -10 -9 -8 -7 -7 -6 -6 -6 -6 -6 -5 --------- Run | Yrd Mat Min Exi Min Mat Fac DSF Fac Ext Cet Arc Hub Fac Total 6486 | 67 926 97 326 394 1275 85 39 760 902 299 430 327 559 Wait 589 | . 58 . . 3 184 . . 47 1 43 97 42 114 Move 5347 | 58 790 97 323 361 965 82 36 645 827 230 280 258 395 Hop . | . . . . . . . . . . . . . . Pick Up 39 | 2 13 . 1 1 6 . 1 1 2 2 6 3 1 Fast Attach 88 | 6 7 . . 1 15 1 . 19 9 . 12 5 13 Attach 28 | . . . . . 6 . . 2 7 5 4 1 3 Detach 11 | . . . . . . . . 1 5 . 2 1 2 Swap 26 | 1 4 . . 3 9 1 . . 2 2 4 . . Drop 70 | . 8 . 2 2 20 1 2 6 5 1 8 6 9 Fire 214 | . 46 . . 23 39 . . 21 30 16 16 10 13 Melee 70 | . . . . . 31 . . 18 14 . 1 . 6 Ram 4 | . . . . . . . . . . . . 1 3 Kick . | . . . . . . . . . . . . . . Crush . | . . . . . . . . . . . . . . Escape Stasis . | . . . . . . . . . . . . . . Rewire . | . . . . . . . . . . . . . . Trap . | . . . . . . . . . . . . . . Miscellaneous . | . . . . . . . . . . . . . . Route ------- -11/Scrapyard -10/Materials (discovered 4 exits: [*Mat x3] / [*Min]) -10/Mines -10/Exiles -9/Mines -8/Materials (discovered 2 exits: *Fac x2) -7/Factory -7/DSF -6/Factory -6/Extension (discovered 2 exits: *Fac / *Cet) -6/Cetus -6/Archives (discovered 3 exits: *Fac / *Hub x2) -6/Hub_04(d) -5/Factory History --------- Turn | Location | Event 60 | -11/Scrapyard | Discovered new exit (range 15) 102 | -11/Scrapyard | Entered Materials 305 | -10/Materials | Build established: Mutant 509 | -10/Materials | Repaired Lgt. Armor Plating 1022 | -10/Materials | Discovered new exit (range 13) 1249 | -10/Materials | Discovered new exit (range 5) 1436 | -10/Materials | Discovered new exit (range 13) 1542 | -10/Materials | Discovered new exit (range 12) 1585 | -10/Materials | Entered Mines 1729 | -10/Mines | Deemed a non-threat by the Exiles lab entrance 1731 | -10/Mines | Discovered new exit (range 5) 1741 | -10/Mines | Entered Exiles 1797 | -10/Exiles | Met 8R-AWN 1831 | -10/Exiles | Met EX-HEX 1897 | -10/Exiles | Met EX-BIN 1927 | -10/Exiles | Aligned with FarCom system 1929 | -10/Exiles | Given EX-Vault access code 1977 | -10/Exiles | Opened EX-Vault 1991 | -10/Exiles | Found AWS/Thermal 2028 | -10/Exiles | Warned to stay clear of 0b10 Research branches 2084 | -10/Exiles | Met EX-DEC 2231 | -10/Exiles | Discovered new exit (range 14) 2260 | -10/Exiles | Left Exiles lab with AWS/Thermal 2260 | -10/Exiles | Entered Mines 2263 | -9/Mines | Escorted by a lone wolf Derelict 2283 | -9/Mines | Learned location of Storage (-7) 2762 | -9/Mines | Received a Rocket Launcher from a helpful Derelict 2843 | -9/Mines | A weapon hastily lodged in a ceiling crevice suddenly fell to the ground 2888 | -9/Mines | Discovered new exit (range 10) 2908 | -9/Mines | Entered Materials 2908 | -8/Materials | Evolved 4 slots: Propulsion x2, Utility x2 2909 | -8/Materials | Identified exit to Factory 3008 | -8/Materials | Discovered exit to Factory (range 16) 3124 | -8/Materials | Central database locked down 4475 | -8/Materials | Entered Factory 4475 | -7/Factory | Evolved 2 slots: Utility x2 4608 | -7/Factory | Identified exit to DSF 4610 | -7/Factory | Entered DSF 4649 | -7/DSF | Discovered new exit (range 12) 4656 | -7/DSF | Additional patrols routed to DSF 4670 | -7/DSF | Entered Factory 4670 | -6/Factory | Evolved 2 slots: Power x1, Utility x1 5177 | -6/Factory | Build established: Skirmisher 5522 | -6/Factory | Lost 5 parts (2n2u1w) 5648 | -6/Factory | Lost 3 parts (1p2u) 5751 | -6/Factory | Cargo convoy interrupted 5777 | -6/Factory | Discovered new exit (range 5) 5802 | -6/Factory | Entered Extension 5864 | -6/Extension | Build established: Scavenger-Mutant 6088 | -6/Extension | Rescued A7 6100 | -6/Extension | Lost 3 parts (1p2n) 6328 | -6/Extension | Spotted B-75 Beast 6361 | -6/Extension | Allies destroyed B-75 Beast 6364 | -6/Extension | Spotted B-75 Beast 6402 | -6/Extension | Disrupted transfer network 6409 | -6/Extension | Allies destroyed B-75 Beast 6605 | -6/Extension | Discovered new exit (range 20) 6606 | -6/Extension | Discovered new exit (range 19) 6861 | -6/Extension | Entered Cetus 6861 | -6/Cetus | Accompanied by 1 ally (A7) 6866 | -6/Cetus | Acquired a Cetus Manufacturing Module code from A7 6876 | -6/Cetus | Spotted Cetus Guard 6877 | -6/Cetus | Spotted Cetus Guard 6878 | -6/Cetus | Spotted Cetus Guard 6880 | -6/Cetus | Spotted Cetus Guard 6888 | -6/Cetus | Allies destroyed Cetus Guard 6905 | -6/Cetus | Destroyed Cetus Guard 6909 | -6/Cetus | Extracted ID and sensor layout for unrecognized location from A7's data core 6924 | -6/Cetus | Destroyed Cetus Guard 6930 | -6/Cetus | Destroyed Cetus Guard 6961 | -6/Cetus | Lost 8 parts (2p2n1u3w) 7084 | -6/Cetus | Started Cetus Manufacturing Module 7109 | -6/Cetus | Manufactured an Enhanced Grunt 7134 | -6/Cetus | Manufactured an Enhanced Grunt 7159 | -6/Cetus | Manufactured an Enhanced Grunt 7184 | -6/Cetus | Manufactured an Enhanced Grunt 7209 | -6/Cetus | Manufactured an Enhanced Grunt 7302 | -6/Cetus | Discovered new exit (range 20) 7385 | -6/Cetus | Entered Archives 7385 | -6/Archives | Accompanied by 5 allies 7483 | -6/Archives | Discovered new exit (range 20) 7540 | -6/Archives | Discovered new exit (range 19) 7593 | -6/Archives | Discovered new exit (range 19) 7635 | -6/Archives | Unable to access archive contents 8060 | -6/Archives | Entered Hub_04(d) 8060 | -6/Hub_04(d) | Accompanied by 5 allies 8215 | -6/Hub_04(d) | Discovered new exit (range 16) 8279 | -6/Hub_04(d) | Network Hub disabled 8280 | -6/Hub_04(d) | Core integrity fell below 50% 8284 | -6/Hub_04(d) | Spotted Lightning 8285 | -6/Hub_04(d) | Entered Factory 8285 | -5/Factory | Accompanied by 5 allies 8285 | -5/Factory | Evolved 2 slots: Propulsion x1, Weapon x1 8454 | -5/Factory | Garrison activated, responded to threat 8524 | -5/Factory | Lost 3 allies 8547 | -5/Factory | Lost 5 parts (3n2u) 8585 | -5/Factory | First assault squad dispatched 8712 | -5/Factory | Core integrity fell below 50% 8718 | -5/Factory | Core integrity fell below 20% 8721 | -5/Factory | Destroyed by G-67 Veteran with Plasma Rifle Last Messages --------------- R-10 Processor collects Mic. Fission Core. Mic. Fission Core destroyed. Critical hit (Burn: +37). R-10 Processor collects Imp. Hover Unit. Axe severed. Slammed into L-41 Fighter. Destabilizing: System interference. Core Analyzer temporarily disabled. K-01 Serf collects debris. Slammed into L-41 Fighter. R-10 Processor collects Axe. Slammed into L-41 Fighter. K-01 Serf collects debris. R-10 Processor collects Lrn. Missile Launcher. R-10 Processor collects Antigrav System. U-05 Engineer lays Concrete. Sml. Storage Unit destroyed. Critical hit (Burn: +37). K-01 Serf cleans the Construction Platform. Core Analyzer severed. Map ----- +----------------------------------------------------+ | ?????????????????# """ """ # # | | ?????????????????# """ """ # """ # | | ?????????????????# """ """ # """ # | | ?????????????????# # """ | | ?????????????????# ] # | | ?????????????????# + | | ?????????????????# ###### | | ?????????????????###### #######????# | | ??????????????????????###?????########+#/######## | | ??????????????????????????????# = #?? | | ??????????????????????????????# #?? | | ??????????????????????????????# """ """ """ #?? | | ??????????????????????????????# """ """ """ #?? | | ??????????????????????????????# """ """ """ #?? | | ??????????????????????????????# #?? | | ??????????????????????????????# #?# | | ??????????????????????????????# #?# | | ??????????????????????????????# ! """"T"""" #?# | | ??????????????????????????????# """"""""""" #?# | | ??????????????????????????????#################?? | | ????????????????????????????????????????????????? | | ?????????????????????????#######????????????????? | | ?????????????????????????# ??????????????#### | | ??????????????############ ???????????????# | | ??????????????# g =%g ]### ######### ???# | | ??????????????#g"""""""l@l ???# | | ??????????????# """""""g#g% #### | | ??????????????# """""""l/ ut * + | | ??????????????# """"""" # ###### #### | | ??????????????# k # #???????????# | | ??????????????# #^ #???????????#### | | ??????????????# [ #^ #??????????????? | | ??????????????#########"# R + ?????????????? | | ??????????????????????######## # "????????????? | | ?????????????????????????????# t# ???????????? | | ?????????????????????????????# #? ???????????? | | ?????????????????????????????# #? !??????????? | | ?????????????????????????????+ #?? ?????????? | | ?????????????????????????????# #?? ????????? | | ?????????????????????????????# #???##?????????? | | ?????????????????????????????# #??????????????? | | ?????????????????????????????# #??????????????? | | ?????????????????????????????? ???????????????? | | ????????????????????????????????????????????????? | | ????????????????????????????????????????????????? | | ????????????????????????????????????????????????? | | ????????????????????????????????????????????????? | | ????????????????????????????????????????????????? | | ????????????????????????????????????????????????? | | ????????????????????????????????????????????????? | +----------------------------------------------------+ Best States ------------- Heat Dissipation 56 Energy Generation 32 Energy Capacity 480 Matter Stores 300 Matter Capacity 450 Sight Range 20 Terrain Scan Range 20 Terrain Scan Density 10 Jamming Range 12 Armor Coverage 225 Phase Shifting 5 Evasion (%) 61 Target Analysis 5 Core Analysis 6 Armor Integrity Analysis 30 Recoil Reduction 4 Kinecelleration 30 Offensive Hacking 24 Defensive Hacking 26 Item Schematics ----------------- None Robot Schematics ------------------ None Fabricated ------------ Nothing Alien Tech Used ----------------- None Achievements -------------- Armchair Analyst GoHome() Prison Break Project G-00 Challenges ------------ None Game ------ Seed HackingLauncherCharge Manual? 0 Play Time 01:40:55 Cumulative 27.3 hours Start 2024.09.18 @ 09:58:18 End 2024.09.18 @ 11:52:17 Sessions 1 Manual Loads 0 Difficulty Rogue Special Mode None Game No. 33 Rogue 33 Adventurer 0 Explorer 0 Win Type - Total 0 Types 0/0/0/0/0/0/0/0/0 Lore% 12 Gallery% 31 Achievement% 31 Wizard Run 0 Options --------- Layout 0 ASCII 0 Keyboard 0 Movement Arrows Keybinds 0 Fullscreen 1 Font 18/SmallcapsGlow Map View 76x50 Zoom Use 0% Tactical HUD 0 Map Filters NONE Filters NONE Steam 0 RUN: 60de68e1-3982-43b9-aff7-5eed841b3182